bitfinex-derivatives/quotes_ETHF0:USTF0_20250905
["timestamp","ask_amount","ask_price","bid_price","bid_amount"]
[1757106275647,7.2078,4331.5,4331.4,0.7142]
[1757106277241,7.2078,4331.5,4331.4,1.0168]
[1757106277242,3.2078,4331.5,4331.4,1.0168]
[1757106280749,3.2078,4331.5,4331.4,0.4136]
[1757106282343,3.81264402,4331.5,4331.4,0.4136]
[1757106284351,4.04564402,4331.5,4331.4,0.7142]
[1757106284748,3.81264402,4331.5,4331.4,0.7142]
[1757106288257,3.81604402,4331.5,4331.4,0.7142]
[1757106291951,3.81714402,4331.5,4331.4,0.4136]
[1757106297364,5.05906532,4331.5,4331.4,0.4136]
[1757106298461,3.81714402,4331.5,4331.4,0.4136]
[1757106303466,0.0034,4331.2,4331.1,0.4058]
[1757106303770,0.84134402,4331.2,4331.1,0.4058]
[1757106304766,0.84024402,4331.2,4330.6,0.4058]
[1757106304965,0.84024402,4331.2,4329.5,3.3857]
[1757106304966,0.0034,4330.2,4330.1,0.4058]
[1757106305265,3.82118625,4330.2,4330.1,0.6902]
[1757106305663,5.06925596,4330.2,4330.1,0.4058]
[1757106305858,3.82228625,4330.2,4330.1,0.4058]
[1757106307264,3.82118625,4330.2,4330.1,0.4058]
[1757106307571,3.82228625,4330.2,4330.1,0.4058]
[1757106307881,3.82118625,4330.2,4330.1,0.6902]
[1757106308373,3.82228625,4330.2,4329.5,0.1779]
[1757106308569,0.84748625,4330.1,4330.0,0.4946]
[1757106309574,0.60998625,4330.1,4330.0,1.0525]
[1757106311362,0.233,4330.3,4330.2,0.5579]
[1757106311564,4.05049352,4330.3,4330.2,0.9637]
[1757106314181,4.05219352,4330.3,4330.2,0.9637]
[1757106315978,4.05049352,4330.3,4330.2,0.9637]
[1757106317580,4.05219352,4330.3,4330.2,0.9637]
[1757106317987,4.05049352,4330.3,4330.2,0.9637]
[1757106318787,3.4425,4330.3,4330.2,0.9637]
[1757106319081,3.2095,4330.3,4330.2,0.9637]
[1757106319278,3.4425,4330.3,4330.2,0.9637]
[1757106319468,3.4398,4330.3,4330.2,0.9637]
[1757106319675,3.2078,4330.3,4330.2,0.9637]
[1757106322982,3.2078,4330.3,4330.2,0.6785]
[1757106323284,3.4398,4330.3,4330.2,0.9675]
[1757106325583,4.04777133,4330.3,4330.2,0.9675]
[1757106326472,4.27870133,4330.3,4330.0,0.4947]
[1757106326672,0.60810697,4330.2,4330.1,0.4059]
[1757106327185,0.84010697,4330.2,4330.1,0.4059]
[1757106329484,0.60810697,4330.2,4330.1,0.4059]
[1757106329684,0.84110697,4330.2,4330.1,0.4059]
[1757106330186,0.84110697,4330.2,4330.1,0.6786]
[1757106330789,0.84110697,4330.2,4330.1,0.4059]
[1757106331787,0.84010697,4330.2,4330.1,0.4059]
[1757106332388,0.84010697,4330.2,4329.6,0.4059]
[1757106332685,3.2078,4329.8,4329.6,0.4059]
[1757106332984,0.84110697,4329.7,4329.1,0.4059]
[1757106333186,3.2078,4329.2,4329.1,0.6786]
[1757106333488,4.04890697,4329.2,4329.1,0.9676]
[1757106334583,3.81590697,4329.2,4329.1,0.9676]
[1757106334779,3.81590697,4329.2,4329.1,4.9676]
[1757106334984,3.2078,4329.2,4329.1,4.9676]
[1757106337489,3.2078,4329.2,4329.1,0.9676]
[1757106346200,3.2078,4329.8,4329.6,0.4059]
[1757106346399,3.2078,4329.8,4329.7,0.9676]
[1757106346599,3.81620324,4329.8,4329.7,0.9676]
[1757106346999,0.233,4330.2,4330.0,0.1633]
[1757106347200,0.233,4330.2,4330.1,0.9676]
[1757106347492,0.60833445,4330.3,4330.1,0.9676]
[1757106347799,0.233,4330.3,4330.2,0.4059]
[1757106348000,0.84131619,4330.3,4330.2,0.9676]
[1757106349802,0.60831619,4330.3,4330.2,0.9676]
[1757106350102,0.84131619,4330.3,4330.2,0.9676]
[1757106354295,0.84345871,4330.3,4330.2,0.9676]
[1757106355806,0.61045871,4330.3,4330.2,0.9676]
[1757106356804,0.61045871,4330.3,4330.2,0.6847]
[1757106357599,0.84245871,4330.3,4330.2,0.6847]
[1757106358200,0.84245871,4330.3,4330.2,0.4059]
[1757106359008,0.84245871,4330.3,4330.0,0.4071]
[1757106359306,0.84245871,4330.2,4330.0,0.4437]
[1757106359608,0.61045871,4330.1,4330.0,0.4437]
[1757106359998,0.61045871,4330.1,4330.0,0.572]
[1757106360308,0.61045871,4330.1,4329.6,0.4071]
[1757106360500,3.2078,4329.7,4329.6,0.4071]
[1757106360701,3.81825871,4329.7,4329.6,0.4071]
[1757106362804,3.81825871,4329.7,4329.0,0.1739]
[1757106363006,0.84245871,4329.6,4329.1,0.4071]
[1757106363313,3.2078,4329.2,4329.1,0.4071]
[1757106363811,3.81839141,4329.2,4329.1,0.4071]
[1757106364401,3.81839141,4329.2,4328.6,0.4071]
[1757106364605,0.84359141,4329.1,4328.6,0.4071]
[1757106364800,0.61059141,4329.0,4328.6,0.4071]
[1757106365001,0.233,4328.9,4328.5,0.1739]
[1757106365313,3.2078,4328.6,4328.5,1.1254]
[1757106365505,4.05139141,4328.6,4328.5,1.1254]
[1757106366715,3.81839141,4328.6,4328.5,1.1254]
[1757106366915,3.2078,4328.6,4328.5,1.1254]
[1757106369328,3.2078,4328.6,4328.5,5.1254]
[1757106370335,0.233,4329.1,4329.0,1.1254]
[1757106370336,3.2078,4329.1,4329.0,1.1254]
[1757106376032,3.2078,4329.1,4329.0,0.8508]
[1757106377941,3.2078,4329.1,4329.0,1.1254]
[1757106380233,1.66262628,4331.2,4329.0,1.1254]
[1757106380234,3.2078,4329.7,4329.6,0.9574]
[1757106381434,0.233,4330.0,4329.7,0.3998]
[1757106381639,0.233,4330.0,4329.9,0.9574]
[1757106382239,3.2078,4330.7,4330.5,0.1688]
[1757106382435,3.4408,4330.7,4330.6,0.685]
[1757106382637,4.05166384,4330.7,4330.6,0.685]
[1757106383844,4.05166384,4330.7,4330.6,0.3998]
[1757106384533,4.05166384,4330.7,4330.6,0.685]
[1757106384845,4.05166384,4330.7,4330.6,0.3998]
[1757106386739,4.05166384,4330.7,4329.7,0.3998]
[1757106386740,8.05166384,4330.7,4329.7,0.3998]
[1757106387048,3.2078,4330.1,4329.5,0.5686]
[1757106387243,3.2078,4329.6,4329.3,0.3998]
[1757106387439,0.233,4329.5,4329.3,0.3998]
[1757106389546,0.233,4329.5,4329.0,0.4501]
[1757106389948,0.233,4329.5,4329.1,0.3998]
[1757106391047,0.233,4329.5,4329.0,0.1649]
[1757106391241,0.233,4329.5,4329.1,0.3998]
[1757106391639,0.233,4329.5,4329.0,0.1649]
[1757106391849,0.233,4329.5,4329.1,0.3998]
[1757106392045,0.233,4329.5,4329.0,0.4501]
[1757106392244,0.233,4329.5,4329.1,0.3998]
[1757106392543,0.233,4329.5,4329.2,0.685]
[1757106392747,0.233,4329.5,4329.0,0.1649]
[1757106393047,0.233,4329.5,4329.1,0.2852]
[1757106393248,0.233,4329.5,4329.2,0.2852]
[1757106393449,0.233,4329.5,4329.3,0.685]
[1757106393754,0.233,4329.5,4329.4,0.3998]
[1757106394046,0.84395517,4329.5,4329.4,0.3998]
[1757106395150,0.84395517,4329.5,4329.4,0.685]
[1757106399350,0.84395517,4329.5,4329.4,0.3998]
[1757106400951,0.61095517,4329.5,4329.4,0.9574]
[1757106401153,2.07828285,4331.1,4329.4,0.9574]
[1757106401154,3.2078,4330.7,4329.5,0.4157]
[1757106401352,3.2078,4331.3,4331.2,0.2852]
[1757106401552,3.2078,4331.3,4331.2,0.685]
[1757106402852,3.2078,4331.3,4331.2,0.3998]
[1757106403548,3.2078,4331.3,4331.0,0.1688]
[1757106403749,0.234,4331.2,4330.5,0.454]
[1757106403952,0.234,4331.2,4330.6,0.685]
[1757106404151,3.2078,4330.7,4330.6,0.685]
[1757106404357,3.2078,4330.7,4330.1,0.3998]
[1757106404564,3.2078,4330.2,4330.1,0.3998]
[1757106404758,3.4418,4330.2,4330.1,0.3998]
[1757106405557,7.4418,4330.2,4330.0,0.1688]
[1757106407062,7.4418,4330.2,4330.1,0.3998]
[1757106408555,3.4418,4330.2,4330.1,0.9664]
[1757106408955,3.4418,4330.2,4330.1,0.3998]
[1757106409462,3.2078,4330.2,4330.1,0.6831]
[1757106409665,3.4418,4330.2,4330.1,0.9645]
[1757106411164,3.2078,4330.2,4330.1,0.9645]
[1757106411464,3.4418,4330.2,4330.1,0.9645]
[1757106413164,4.04929544,4330.2,4330.1,0.9645]
[1757106413366,3.4418,4330.2,4330.1,0.9645]
[1757106413563,4.04936212,4330.2,4330.1,0.9645]
[1757106415962,3.81536212,4330.2,4330.1,0.9645]
[1757106416163,4.04936212,4330.2,4330.1,0.9645]
[1757106416356,3.81536212,4330.2,4330.1,4.9645]
[1757106416556,3.4418,4330.7,4330.6,0.9688]
[1757106416759,3.81550634,4330.7,4330.6,0.9688]
[1757106416966,3.2078,4330.7,4330.6,0.9688]
[1757106417872,3.4723,4330.7,4330.6,0.9688]
[1757106418064,0.2645,4330.7,4330.6,0.9688]
[1757106424574,0.5341,4330.7,4330.6,0.9688]
[1757106429376,0.2645,4330.7,4330.6,0.9688]
[1757106429578,0.234,4330.9,4330.7,0.6874]
[1757106429773,0.5341,4330.8,4330.7,0.9688]
[1757106430282,0.9027,4330.8,4330.7,0.9688]
[1757106430970,0.5341,4330.8,4330.7,0.9688]
[1757106431178,0.5341,4330.8,4330.2,0.4041]
[1757106431179,0.3686,4330.7,4330.2,0.4041]
[1757106431472,0.2645,4330.1,4330.0,1.1376]
[1757106432176,0.5341,4329.6,4329.5,0.4041]
[1757106432373,0.5341,4329.6,4329.0,3.367]
[1757106432374,4.1105,4329.6,4329.1,0.4041]
[1757106432573,0.2645,4329.2,4329.1,0.9688]
[1757106433476,3.7419,4329.6,4329.5,0.8466]
[1757106433676,4.71799392,4329.6,4329.5,0.8466]
[1757106434271,4.71799392,4329.6,4329.0,0.1592]
[1757106434477,0.5341,4329.1,4329.0,0.4425]
[1757106435081,0.5341,4329.1,4329.0,0.8466]
[1757106435982,0.5341,4329.1,4329.0,1.128]
[1757106436173,3.2078,4329.6,4329.0,0.7239]
[1757106436375,3.7419,4329.6,4329.5,0.8466]
[1757106436683,4.58307408,4329.6,4329.5,1.128]
[1757106437380,4.34907408,4329.6,4329.5,1.128]
[1757106437682,4.58307408,4329.6,4329.5,1.128]
[1757106438184,4.95167408,4329.6,4329.5,1.128]
[1757106438784,4.58307408,4329.6,4329.5,1.128]
[1757106439482,4.94077408,4329.6,4329.5,1.128]
[1757106441383,4.58307408,4329.6,4329.5,1.128]
[1757106441689,4.31347408,4329.6,4329.5,1.128]
[1757106441986,3.7063,4329.6,4329.5,1.128]
[1757106443481,3.9721,4329.6,4329.5,1.128]
[1757106445386,4.3264,4329.6,4329.5,1.128]
[1757106445684,3.4723,4329.6,4329.5,1.128]
[1757106445897,3.7018,4329.6,4329.5,1.128]
[1757106447689,3.4678,4329.6,4329.5,1.128]
[1757106447890,3.7336,4329.6,4329.5,1.128]
[1757106450388,3.2078,4329.6,4329.5,1.128]
[1757106450587,3.4678,4329.6,4329.5,1.128]
[1757106451787,3.2078,4329.6,4329.5,1.128]
[1757106452094,3.4678,4330.3,4330.2,0.9259]
[1757106452281,4.30828722,4330.3,4330.2,0.9259]
[1757106452690,3.7008,4330.3,4330.2,0.9259]
[1757106452995,4.3209,4330.3,4330.2,0.9259]
[1757106455088,4.9286814,4330.3,4330.2,0.9259]
[1757106455695,4.9286814,4330.3,4330.0,0.1584]
[1757106455893,0.8801,4330.1,4330.0,0.3839]
[1757106456597,0.5258,4329.6,4329.5,0.3839]
[1757106456794,0.5258,4329.6,4328.9,3.2078]
[1757106456795,4.0879,4329.6,4329.1,0.3839]
[1757106457095,0.26,4329.2,4329.1,0.9259]
[1757106457397,0.5258,4329.2,4329.1,0.9259]
[1757106457895,0.8801,4329.2,4329.1,0.9259]
[1757106458293,0.8801,4329.2,4329.1,0.6551]
[1757106458889,0.233,4329.5,4329.1,0.542]
[1757106459085,0.2658,4329.3,4329.2,0.6551]
[1757106459291,0.5258,4329.3,4329.2,0.9259]
[1757106460390,0.8801,4329.3,4329.2,0.9259]
[1757106461299,0.5258,4329.3,4329.2,0.9259]
[1757106466801,0.8801,4329.3,4329.2,0.9259]
[1757106467398,0.8801,4329.3,4329.2,0.6551]
[1757106467594,0.8801,4329.3,4329.2,0.9259]
[1757106467793,0.5258,4329.3,4329.2,0.9259]
[1757106468194,0.8801,4329.3,4329.2,0.9259]
[1757106468400,1.48941206,4329.3,4329.2,0.9259]
[1757106468600,1.13511206,4329.3,4329.2,0.9259]
[1757106470000,0.60931206,4329.3,4329.2,0.9259]
[1757106470600,0.88491206,4329.3,4329.2,0.9259]
[1757106472202,0.60931206,4329.3,4329.2,0.9259]
[1757106472592,0.88491206,4329.3,4329.2,0.9259]
[1757106473606,0.60931206,4329.3,4329.2,0.9259]
[1757106474910,0.88491206,4329.3,4329.2,0.9259]
[1757106477909,0.60931206,4329.3,4329.2,0.9259]
[1757106478803,1.48081206,4329.3,4329.2,0.6551]
[1757106479506,1.48081206,4329.3,4329.2,0.9125]
[1757106480610,1.13751206,4329.3,4329.2,0.9125]
[1757106480808,0.88491206,4329.3,4329.2,0.9125]
[1757106481312,1.48081206,4329.3,4329.0,0.388]
[1757106481505,1.48081206,4329.3,4328.5,0.1592]
[1757106481506,0.2756,4328.6,4328.5,0.6845]
[1757106481813,0.5282,4328.6,4328.5,0.6845]
[1757106482003,0.5282,4328.6,4328.5,1.0725]
[1757106483104,0.8715,4328.6,4328.0,0.1584]
[1757106483312,0.8715,4328.6,4328.1,0.388]
[1757106483506,0.8715,4328.2,4328.1,0.6559]
[1757106483909,4.0793,4328.2,4328.1,0.388]
[1757106484218,4.68881049,4328.2,4328.1,0.388]
[1757106485009,4.34551049,4328.2,4328.1,0.9133]
[1757106485313,3.736,4328.2,4328.1,0.9133]
[1757106487316,4.0793,4328.2,4328.1,0.6559]
[1757106494318,3.2078,4328.2,4327.5,3.2078]
[1757106496019,3.2078,4328.2,4327.5,3.2078]
[1757106497019,3.4408,4328.2,4327.5,3.2078]
[1757106500620,0.233,4328.2,4327.5,3.2078]
[1757106502620,0.233,4328.2,4327.5,3.4408]
[1757106507424,1.0774,4328.2,4328.1,0.6728]
[1757106507726,1.68862992,4328.2,4328.1,0.6728]
[1757106508128,1.68862992,4328.2,4328.1,0.9383]
[1757106508727,1.36212992,4328.2,4328.1,0.9383]
[1757106509927,0.61122992,4328.2,4328.1,0.9383]
[1757106510124,0.86972992,4328.2,4328.1,0.9383]
[1757106511426,1.12912992,4328.2,4328.1,0.9383]
[1757106513534,1.12912992,4328.2,4328.1,0.6728]
[1757106513730,1.45562992,4328.2,4328.1,0.6728]
[1757106517438,1.12912992,4328.2,4328.1,0.6728]
[1757106517639,1.12912992,4328.2,4328.1,0.9383]
[1757106519840,1.45562992,4328.2,4328.1,0.9383]
[1757106520644,1.68862992,4328.2,4328.1,0.9383]
[1757106521136,1.45562992,4328.2,4328.1,0.9383]
[1757106521341,1.68862992,4328.2,4328.1,0.9383]
[1757106522240,0.5179,4327.6,4327.5,0.3996]
[1757106522445,4.2852,4327.6,4327.5,0.3996]
[1757106522648,0.8444,4327.1,4327.0,0.5522]
[1757106522841,1.68994551,4327.1,4327.0,0.3996]
[1757106523838,4.89774551,4327.1,4327.0,0.3996]
[1757106524145,4.89774551,4327.1,4326.5,0.1526]
[1757106524348,4.0522,4326.6,4326.5,0.6728]
[1757106524543,5.11168671,4326.6,4326.5,0.3996]
[1757106524838,5.12482412,4326.6,4326.5,0.3996]
[1757106526640,4.79832412,4326.6,4326.1,0.3996]
[1757106526951,0.5179,4326.2,4326.1,0.9383]
[1757106527150,0.7318412,4326.2,4326.1,0.9383]
[1757106527952,0.74497861,4326.2,4326.1,0.9383]
[1757106529048,1.06037861,4326.2,4326.1,0.9383]
[1757106529240,1.06037861,4326.2,4326.1,0.6728]
[1757106529442,0.3154,4326.1,4325.5,3.3604]
[1757106529754,0.22707861,4326.2,4325.5,0.3941]
[1757106529755,4.0245,4325.6,4325.5,0.3941]
[1757106529943,4.4714412,4325.6,4325.5,0.3941]
[1757106530143,4.16917861,4325.6,4325.1,0.3941]
[1757106530354,0.5013,4325.2,4325.1,0.9091]
[1757106531140,0.01313741,4325.2,4325.1,0.9091]
[1757106531347,0.01313741,4325.2,4325.1,4.9091]
[1757106531541,0.01313741,4325.2,4325.1,5.14031]
[1757106531751,0.01313741,4325.2,4325.1,4.9091]
[1757106534956,0.01313741,4325.2,4325.1,5.1421]
[1757106535455,3.2078,4326.1,4325.1,5.1421]
[1757106535754,3.8561,4326.1,4326.0,1.0665]
[1757106536053,3.92196617,4326.1,4326.0,1.0665]
[1757106536950,0.71416617,4326.1,4326.0,1.0665]
[1757106537251,0.21286617,4326.1,4326.0,1.0665]
[1757106537449,0.233,4326.3,4326.0,0.6724]
[1757106537756,0.233,4326.3,4326.2,0.9091]
[1757106538053,3.4677,4326.6,4326.5,1.0665]
[1757106538355,3.68050048,4326.6,4326.5,1.0665]
[1757106540462,0.21280048,4326.6,4326.5,8.2743]
[1757106540751,1.1293,4327.5,4327.4,0.9091]
[1757106541558,1.1293,4327.5,4327.4,0.6446]
[1757106543159,3.2078,4327.6,4327.5,1.0665]
[1757106543347,3.4677,4327.6,4327.5,1.0665]
[1757106543549,4.1041,4327.6,4327.5,1.0665]
[1757106543746,3.7091,4327.6,4327.5,1.0665]
[1757106543950,3.2078,4327.6,4327.5,1.0665]
[1757106545356,0.233,4328.0,4327.5,0.6724]
[1757106545659,1.1293,4328.0,4327.9,0.2505]
[1757106545861,0.8963,4328.0,4327.9,0.6446]
[1757106546058,1.1293,4328.0,4327.9,0.9091]
[1757106546354,0.5013,4328.0,4327.9,0.9091]
[1757106547556,0.8963,4328.0,4327.9,0.9091]
[1757106550153,0.395,4327.9,4327.2,0.3941]
[1757106550461,0.5013,4326.7,4326.6,0.6446]
[1757106550655,0.8963,4326.7,4326.6,0.9091]
[1757106551149,0.5013,4326.7,4326.6,0.9091]
[1757106552663,0.71175037,4326.7,4326.6,0.9091]
[1757106553464,1.10675037,4326.7,4326.6,0.9091]
[1757106554760,0.8963,4326.7,4326.6,0.9091]
[1757106557258,0.8963,4326.7,4326.1,0.233]
[1757106557259,0.395,4326.6,4326.1,0.3941]
[1757106557456,0.233,4326.7,4325.5,0.1574]
[1757106557457,0.8963,4326.2,4325.9,0.3941]
[1757106557655,1.1293,4326.2,4325.6,0.3941]
[1757106558159,1.1293,4326.2,4326.1,0.6446]
[1757106559458,1.1293,4326.2,4326.1,0.3941]
[1757106559759,4.0973,4326.9,4326.8,0.2568]
[1757106560067,4.94866552,4326.9,4326.8,0.6228]
[1757106560465,4.94866552,4326.9,4326.1,0.366]
[1757106560665,4.94866552,4326.9,4326.1,0.8655]
[1757106560666,0.2632,4326.2,4326.1,0.8655]
[1757106561062,0.3718,4326.5,4326.2,0.366]
[1757106561262,0.2632,4326.3,4326.2,0.8655]
[1757106561764,3.5796,4326.9,4326.3,0.366]
[1757106561970,3.5796,4326.9,4326.0,0.1498]
[1757106562163,0.2632,4326.3,4326.2,0.8655]
[1757106562980,0.8895,4326.3,4326.2,0.8655]
[1757106563264,0.8895,4326.3,4326.2,0.6228]
[1757106563661,3.2078,4326.4,4326.3,0.8655]
[1757106563864,3.471,4326.4,4326.3,0.8655]
[1757106564562,3.7255,4326.4,4326.3,0.8655]
[1757106564766,0.2632,4326.1,4326.0,0.6493]
[1757106565366,0.2632,4326.1,4326.0,1.0153]
[1757106565771,3.2078,4326.4,4326.1,0.366]
[1757106566070,0.2632,4326.2,4326.1,0.8655]
[1757106566568,3.2078,4327.0,4326.9,0.4995]
[1757106566763,3.82694422,4327.0,4326.9,0.8655]
[1757106566966,3.471,4327.0,4326.9,0.8655]
[1757106567272,4.09033898,4327.0,4326.9,0.8655]
[1757106568865,3.82713898,4327.0,4326.9,0.8655]
[1757106569065,4.09033898,4327.0,4326.9,0.8655]
[1757106569873,0.2632,4327.0,4326.9,0.8655]
[1757106570070,0.7517,4327.3,4327.2,0.8655]
[1757106570370,1.74286356,4327.3,4327.2,0.8655]
[1757106570870,0.61936356,4327.3,4327.2,0.8655]
[1757106571073,3.2078,4327.6,4327.5,0.1498]
[1757106571271,3.82720214,4327.6,4327.5,1.0153]
[1757106571574,4.09040214,4327.6,4327.5,1.0153]
[1757106573969,4.71670214,4327.6,4327.5,1.0153]
[1757106574876,4.71670214,4327.6,4327.5,0.366]
[1757106575176,4.71670214,4327.6,4327.5,0.6228]
[1757106575370,0.1493,4327.5,4326.5,0.1498]
[1757106575578,0.8895,4326.7,4325.9,5.371]
[1757106575776,0.8895,4326.7,4326.1,0.366]
[1757106578178,0.61952854,4326.6,4326.1,0.366]
[1757106578366,0.5177,4326.2,4326.1,0.6228]
[1757106578565,0.8895,4326.2,4326.1,0.6228]
[1757106579883,0.8895,4326.2,4326.1,0.8655]
[1757106580379,0.8895,4326.2,4326.1,0.366]
[1757106581480,0.8895,4326.2,4326.1,0.6228]
[1757106582287,0.8895,4326.2,4325.6,0.235]
[1757106582475,0.8895,4326.2,4325.7,0.366]
[1757106582783,0.8895,4326.1,4326.0,0.6228]
[1757106584688,0.8895,4326.1,4326.0,0.8655]
[1757106585184,1.50917904,4326.1,4326.0,0.8655]
[1757106590183,0.8895,4326.1,4326.0,0.8655]
[1757106593192,0.8895,4326.1,4326.0,0.6228]
[1757106593492,0.8681,4325.4,4325.3,0.2356]
[1757106594090,0.8681,4325.4,4325.3,0.6203]
[1757106595400,0.8681,4325.4,4325.3,0.8685]
[1757106598105,0.5016,4325.4,4325.3,0.8685]
[1757106599801,0.8681,4325.4,4325.3,0.8685]
[1757106600102,0.5016,4325.4,4325.3,0.8685]
[1757106600298,0.8681,4325.4,4325.3,0.8685]
[1757106602604,0.5016,4325.4,4325.3,0.8685]
[1757106604105,0.3665,4326.0,4325.5,0.1384]
[1757106604308,4.0759,4326.0,4325.9,0.6203]
[1757106604500,4.92983473,4326.0,4325.9,0.6203]
[1757106605305,5.06833473,4326.0,4325.6,0.3847]
[1757106605498,0.8681,4325.6,4325.5,0.6222]
[1757106605699,1.48803473,4325.6,4325.5,0.6222]
[1757106606004,1.48803473,4325.6,4325.5,1.0069]
[1757106608008,0.86933473,4325.6,4325.5,1.0069]
[1757106609608,1.23583473,4325.6,4325.5,1.0069]
[1757106609912,0.61993473,4325.6,4325.5,1.0069]
[1757106610102,0.61993473,4325.6,4325.5,0.6222]
[1757106610302,0.61993473,4325.9,4325.5,0.6222]
[1757106610502,0.98643473,4325.9,4325.5,0.6222]
[1757106610807,0.2494,4325.6,4325.5,0.6222]
[1757106611210,0.86933473,4325.6,4325.5,1.0069]
[1757106612708,0.61993473,4325.6,4325.5,1.0069]
[1757106612908,0.8681,4326.2,4326.1,0.8685]
[1757106613210,1.48858577,4326.2,4326.1,0.8685]
[1757106614914,1.48858577,4326.2,4326.1,0.6203]
[1757106615118,1.48858577,4326.2,4325.6,0.3847]
[1757106615416,0.5016,4325.7,4325.6,0.8685]
[1757106615608,0.8681,4325.7,4325.6,0.8685]
[1757106615813,1.12208577,4325.7,4325.6,0.8685]
[1757106617408,0.3665,4325.6,4325.3,0.3847]
[1757106617612,0.8681,4325.4,4325.3,0.3847]
[1757106617816,1.48858577,4325.4,4325.3,0.3847]
[1757106625132,1.48774836,4325.4,4325.3,0.6193]
[1757106627726,0.86904836,4325.4,4325.3,0.8637]
[1757106628222,0.61964836,4325.4,4325.3,0.8637]
[1757106629922,0.4852,4325.1,4325.0,8.2346]
[1757106630129,1.46774836,4325.1,4325.0,8.3745]
[1757106630525,1.46774836,4325.1,4325.0,8.8535]
[1757106630726,0.86394836,4325.1,4325.0,8.9969]
[1757106631826,0.61964836,4325.1,4325.0,8.9969]
[1757106632031,3.2078,4325.2,4325.0,8.9969]
[1757106632032,3.2078,4325.2,4325.0,8.6224]
[1757106632328,3.2078,4325.2,4325.1,0.8535]
[1757106632527,3.82720483,4325.2,4325.1,0.8535]
[1757106633528,3.2078,4325.2,4325.1,0.8535]
[1757106634631,3.2078,4325.2,4325.1,1.0875]
[1757106635630,3.4521,4325.2,4325.1,1.0875]
[1757106636429,4.0559,4325.2,4325.1,0.8535]
[1757106636635,4.0559,4325.2,4325.1,1.0875]
[1757106638637,0.8481,4325.2,4325.1,1.0875]
[1757106638936,0.4852,4325.2,4325.1,1.0875]
[1757106639234,0.8481,4325.2,4325.1,1.0875]
[1757106639735,0.4852,4325.2,4325.1,1.0875]
[1757106640236,0.8481,4325.2,4325.1,1.0875]
[1757106640934,0.2443,4325.6,4325.5,0.9969]
[1757106641127,1.1047077,4325.6,4325.5,0.9969]
[1757106641333,1.4676077,4325.6,4325.5,0.9969]
[1757106644031,0.6195077,4325.6,4325.5,0.9969]
[1757106644237,3.5707,4326.3,4325.5,0.9969]
[1757106644539,1.46759105,4326.2,4326.1,0.6091]
[1757106647939,1.46759105,4326.2,4326.1,0.8535]
[1757106650638,0.61949105,4326.2,4326.1,0.8535]
[1757106650836,1.47939105,4326.2,4326.1,0.3745]
[1757106651039,0.4897,4325.7,4325.6,0.2479]
[1757106651237,0.8599,4325.7,4325.6,0.4909]
[1757106651441,0.4897,4325.1,4325.0,8.0]
[1757106651746,3.2078,4325.3,4325.2,0.8429]
[1757106652046,0.3702,4325.7,4325.2,0.4909]
[1757106652231,1.10790837,4325.6,4325.5,0.9805]
[1757106652434,1.47810837,4325.6,4325.5,0.5999]
[1757106653735,1.10790837,4325.6,4325.1,0.352]
[1757106653940,0.8599,4325.2,4325.1,1.0859]
[1757106654337,0.4897,4325.2,4325.1,1.0859]
[1757106655943,0.2404,4325.5,4325.4,0.4909]
[1757106656148,0.61830832,4325.7,4325.6,0.4909]
[1757106656447,3.6975,4326.3,4326.2,0.2479]
[1757106656650,0.61838189,4326.3,4326.2,0.8429]
[1757106657041,0.3702,4326.7,4326.2,0.8429]
[1757106657247,0.98842192,4326.6,4326.3,0.352]
[1757106657447,0.85862192,4326.5,4326.4,0.4909]
[1757106657645,0.85862192,4326.5,4326.4,0.8429]
[1757106659443,3.2078,4326.9,4326.8,0.4909]
[1757106659651,3.82564847,4326.9,4326.8,0.8429]
[1757106659851,4.68554847,4326.9,4326.8,0.8429]
[1757106660650,4.31534847,4326.9,4326.8,0.8429]
[1757106661452,3.6975,4326.9,4326.8,0.8429]
[1757106662051,0.4897,4326.9,4326.8,0.8429]
[1757106664850,3.578,4327.4,4326.8,0.4909]
[1757106665048,3.578,4327.4,4326.5,0.3806]
[1757106665049,0.61718954,4327.3,4327.2,0.8429]
[1757106665245,0.2404,4327.3,4327.2,0.4909]
[1757106665951,0.2404,4327.3,4327.2,0.8429]
[1757106666345,0.8599,4327.3,4327.2,0.8429]
[1757106668150,0.8599,4327.3,4327.1,0.352]
[1757106668351,0.8599,4326.1,4326.0,4.0497]
[1757106668555,0.8599,4326.1,4326.0,4.4303]
[1757106668751,0.4897,4326.1,4326.0,4.4303]
[1757106668951,0.4897,4326.1,4326.0,4.1883]
[1757106669152,0.4897,4326.1,4326.0,4.4303]
[1757106670453,0.8599,4326.1,4326.0,0.352]
[1757106670954,0.8599,4326.1,4326.0,0.5999]
[1757106679356,0.3496,4326.5,4326.0,0.6284]
[1757106679654,0.2429,4326.6,4326.5,0.6062]
[1757106680161,0.2429,4326.6,4326.5,0.9464]
[1757106680354,0.86580195,4326.6,4326.5,0.9464]
[1757106680955,3.2078,4326.9,4326.6,0.3402]
[1757106681160,3.2078,4326.9,4326.8,0.4687]
[1757106681361,3.2078,4326.9,4326.8,0.8089]
[1757106681562,3.4507,4326.9,4326.8,0.8089]
[1757106682658,3.2078,4327.0,4326.9,0.3402]
[1757106682964,3.2078,4327.0,4326.8,0.7097]
[1757106682965,3.4507,4327.5,4327.4,0.8089]
[1757106683159,4.31950724,4327.5,4327.4,0.8089]
[1757106683664,4.66910724,4327.5,4327.4,0.8089]
[1757106683868,4.31950724,4327.5,4327.4,0.8089]
[1757106684249,4.07390724,4327.5,4327.4,0.8089]